bitfinex-derivatives/quotes_BTCF0:USTF0_20241116
["timestamp","ask_amount","ask_price","bid_price","bid_amount"]
[1731766157978,0.054982,90897.0,90893.0,0.1970389]
[1731766158677,0.054982,90897.0,90894.0,0.1970389]
[1731766159083,0.054982,90897.0,90892.0,0.1970389]
[1731766159282,0.10952257,90897.0,90891.0,0.1970389]
[1731766160076,0.05454057,90897.0,90891.0,0.1970389]
[1731766160280,0.1,90900.0,90892.0,0.1970389]
[1731766160485,0.3608,90898.0,90893.0,0.1970389]
[1731766160687,0.3608,90898.0,90891.0,0.1970389]
[1731766161082,0.3608,90898.0,90892.0,0.2520239]
[1731766161275,0.3608,90898.0,90893.0,0.1970389]
[1731766161477,0.3608,90898.0,90894.0,0.1970389]
[1731766161887,0.054983,90896.0,90893.0,0.1970389]
[1731766162078,0.054985,90892.0,90890.0,0.1970389]
[1731766162281,0.054985,90892.0,90886.0,0.26312947]
[1731766162282,0.054985,90892.0,90891.0,0.1970389]
[1731766162591,0.054985,90892.0,90885.0,0.10455818]
[1731766162592,0.10455818,90895.0,90888.0,0.19691659]
[1731766162883,0.05499,90884.0,90881.0,0.19691659]
[1731766163082,0.05499,90884.0,90882.0,0.19691659]
[1731766163687,0.05499,90884.0,90883.0,0.19691659]
[1731766163887,0.05499,90884.0,90877.0,0.06865926]
[1731766163888,0.05499,90884.0,90882.0,0.19691659]
[1731766164087,0.05499,90884.0,90883.0,0.19691659]
[1731766164486,0.05499,90884.0,90883.0,0.19696436]
[1731766164799,0.05499,90884.0,90879.0,0.26312947]
[1731766164984,0.05499,90884.0,90877.0,0.0560047]
[1731766164985,0.05499,90884.0,90878.0,0.26312947]
[1731766165284,0.05499,90884.0,90879.0,0.26312947]
[1731766166293,0.05499,90884.0,90880.0,0.26312947]
[1731766166583,0.05499,90884.0,90876.0,0.15959542]
[1731766166584,0.05499,90884.0,90879.0,0.26312947]
[1731766166785,0.05499,90884.0,90880.0,0.26312947]
[1731766167579,0.054991,90882.0,90881.0,0.26312947]
[1731766168176,0.054991,90882.0,90876.0,0.43348249]
[1731766168787,0.054991,90882.0,90881.0,0.26276343]
[1731766169188,0.054991,90882.0,90876.0,0.43348249]
[1731766169579,0.054991,90882.0,90877.0,0.32888107]
[1731766169775,0.054988,90887.0,90880.0,0.054992]
[1731766169990,0.054988,90887.0,90884.0,0.26280433]
[1731766170479,0.3608,90893.0,90884.0,0.26280433]
[1731766170683,0.3608,90893.0,90891.0,0.10460142]
[1731766170880,0.3608,90898.0,90892.0,0.054985]
[1731766170881,0.415782,90898.0,90892.0,0.054985]
[1731766171180,0.415782,90898.0,90891.0,0.10460142]
[1731766171181,0.1,90900.0,90899.0,0.054981]
[1731766171482,0.1,90900.0,90899.0,0.15958242]
[1731766172181,0.1,90900.0,90899.0,0.47360135]
[1731766172894,0.1,90900.0,90899.0,0.48809947]
[1731766173293,0.1,90900.0,90899.0,0.80115028]
[1731766173484,0.1,90900.0,90899.0,0.47260984]
[1731766177087,0.1,90900.0,90899.0,0.41762884]
[1731766180791,0.1,90900.0,90899.0,0.64210023]
[1731766180986,0.15611324,90900.0,90893.0,0.32907281]
[1731766181188,0.15611324,90900.0,90897.0,0.26328134]
[1731766181489,0.15611324,90900.0,90897.0,0.26328194]
[1731766181490,0.054981,90898.0,90897.0,0.26328194]
[1731766181991,0.054983,90896.0,90895.0,0.26328194]
[1731766182294,0.415783,90896.0,90895.0,0.26328194]
[1731766182593,0.415783,90896.0,90894.0,0.26328194]
[1731766182906,0.054983,90895.0,90894.0,0.1974826]
[1731766183285,0.054984,90893.0,90891.0,0.1974826]
[1731766183590,0.3608,90896.0,90882.0,0.32907281]
[1731766183591,0.054987,90889.0,90882.0,0.32907281]
[1731766183894,0.054988,90888.0,90884.0,0.32907281]
[1731766184293,0.0876,90892.0,90884.0,0.32907281]
[1731766184503,0.415789,90885.0,90883.0,0.32907281]
[1731766184688,0.054991,90883.0,90881.0,0.32907281]
[1731766185197,0.054991,90883.0,90877.0,0.054994]
[1731766185997,0.054991,90883.0,90877.0,0.44990421]
[1731766186295,0.054991,90883.0,90878.0,0.31330431]
[1731766186493,0.054991,90883.0,90877.0,0.44990421]
[1731766186494,0.054991,90883.0,90879.0,0.31330431]
[1731766186688,0.054991,90883.0,90880.0,0.31330431]
[1731766186888,0.054991,90883.0,90881.0,0.31330431]
[1731766187090,0.054991,90883.0,90882.0,0.31330431]
[1731766187492,0.054991,90883.0,90882.0,0.64237334]
[1731766187685,0.054987,90889.0,90882.0,0.31330431]
[1731766187885,0.0876,90892.0,90884.0,0.32905852]
[1731766188091,0.054989,90886.0,90884.0,0.32905852]
[1731766188790,0.054989,90886.0,90885.0,0.06863987]
[1731766189093,0.415789,90886.0,90885.0,0.06863987]
[1731766190411,0.05499,90885.0,90882.0,0.32905852]
[1731766190697,0.05499,90885.0,90883.0,0.32905852]
[1731766190893,0.05499,90885.0,90873.0,0.00165031]
[1731766190894,0.3608,90886.0,90881.0,0.32905852]
[1731766191096,0.054991,90882.0,90880.0,0.32905852]
[1731766191683,0.3608,90886.0,90880.0,0.32905852]
[1731766191899,0.054992,90881.0,90879.0,0.32905852]
[1731766192092,0.054992,90881.0,90880.0,0.64167304]
[1731766192696,0.054992,90881.0,90880.0,0.31261452]
[1731766193295,0.054992,90881.0,90880.0,0.64160493]
[1731766193498,0.054992,90881.0,90880.0,0.32899041]
[1731766193697,0.054992,90881.0,90880.0,0.64148405]
[1731766194196,0.054992,90881.0,90880.0,0.6415221]
[1731766194596,0.054992,90881.0,90880.0,0.32899041]
[1731766194902,0.054992,90881.0,90879.0,0.32899041]
[1731766195203,0.054992,90881.0,90880.0,0.32899041]
[1731766195703,0.054992,90881.0,90879.0,0.32899041]
[1731766195900,0.054992,90881.0,90874.0,0.39491021]
[1731766195901,0.054992,90881.0,90880.0,0.32899041]
[1731766196094,0.054992,90881.0,90879.0,0.32899041]
[1731766197196,0.054992,90881.0,90880.0,0.64151082]
[1731766197393,0.054992,90881.0,90879.0,0.32899041]
[1731766197593,0.11086065,90881.0,90879.0,0.32899041]
[1731766197797,0.054992,90881.0,90879.0,0.32899041]
[1731766198700,0.054992,90881.0,90880.0,0.32899041]
[1731766199200,0.142592,90881.0,90879.0,0.32899041]
[1731766199403,0.142592,90881.0,90876.0,0.32899041]
[1731766199606,0.054993,90879.0,90876.0,0.32899041]
[1731766199905,0.054993,90879.0,90873.0,0.00165031]
[1731766199906,0.054994,90878.0,90877.0,0.32897197]
[1731766200201,0.054994,90878.0,90876.0,0.32897197]
[1731766200405,0.054994,90878.0,90877.0,0.32897197]
[1731766200699,0.415794,90878.0,90876.0,0.32897197]
[1731766200903,0.054995,90875.0,90873.0,0.33062228]
[1731766201097,0.054995,90875.0,90873.0,0.00165031]
[1731766202899,0.054995,90875.0,90873.0,0.33062228]
[1731766203301,0.054995,90875.0,90873.0,0.00165031]
[1731766203302,0.3608,90874.0,90873.0,0.00165031]
[1731766203496,0.054997,90873.0,90872.0,0.26313474]
[1731766203900,0.054997,90873.0,90871.0,0.26313474]
[1731766204205,0.3608,90874.0,90870.0,0.26313474]
[1731766204403,0.054998,90871.0,90869.0,0.26313474]
[1731766204607,0.08764,90870.0,90869.0,0.26313474]
[1731766204904,0.142638,90870.0,90868.0,0.26313306]
[1731766205103,0.43477679,90869.0,90867.0,0.26313306]
[1731766205296,0.10461679,90869.0,90864.0,0.26313306]
[1731766205498,0.3608,90865.0,90864.0,0.26313306]
[1731766205710,0.055002,90864.0,90863.0,0.26313306]
[1731766206007,0.385162,90864.0,90863.0,0.20495406]
[1731766206198,0.055003,90863.0,90861.0,0.19739258]
[1731766206398,0.055012,90847.0,90846.0,0.33097197]
[1731766206698,0.503452,90847.0,90846.0,0.002]
[1731766206903,0.864252,90847.0,90846.0,0.002]
[1731766207307,0.96886879,90847.0,90846.0,0.002]
[1731766208416,1.29910879,90847.0,90846.0,0.002]
[1731766209109,1.194492,90847.0,90846.0,0.002]
[1731766209312,0.776612,90847.0,90846.0,0.002]
[1731766209718,0.96886879,90847.0,90846.0,0.002]
[1731766210115,1.29910879,90847.0,90820.0,0.10461679]
[1731766210314,0.055024,90828.0,90826.0,0.0575254]
[1731766212614,0.0876,90831.0,90826.0,0.0575254]
[1731766212932,0.142622,90831.0,90827.0,0.10461679]
[1731766213618,0.055023,90830.0,90827.0,0.10461679]
[1731766214012,0.055023,90830.0,90826.0,0.0575254]
[1731766214405,0.0876,90831.0,90826.0,0.0575254]
[1731766214814,0.055024,90827.0,90826.0,0.0575254]
[1731766215224,0.055024,90827.0,90826.0,0.05587385]
[1731766215421,0.0876,90831.0,90807.0,0.02200636]
[1731766215616,0.05503,90819.0,90807.0,0.02200636]
[1731766215922,0.3608,90813.0,90803.0,0.10461679]
[1731766216122,0.055036,90809.0,90803.0,0.15953551]
[1731766216621,0.3608,90813.0,90803.0,0.21457451]
[1731766216818,0.3608,90813.0,90803.0,0.15953551]
[1731766217123,0.142631,90817.0,90811.0,0.3608]
[1731766217530,0.142631,90817.0,90803.0,0.15953551]
[1731766217824,0.3608,90822.0,90807.0,0.055036]
[1731766217825,0.055032,90816.0,90807.0,0.055036]
[1731766218222,0.055032,90815.0,90807.0,0.055036]
[1731766218525,0.0876,90820.0,90807.0,0.055036]
[1731766218820,0.055033,90814.0,90807.0,0.055036]
[1731766220925,0.055033,90814.0,90809.0,0.3608]
[1731766221121,0.055028,90821.0,90810.0,0.10461679]
[1731766221432,0.055028,90821.0,90819.0,0.10461679]
[1731766222018,0.0051,90838.0,90819.0,0.10461679]
[1731766222319,0.0051,90838.0,90809.0,0.3608]
[1731766222320,0.055024,90828.0,90822.0,0.055027]
[1731766222828,0.055024,90828.0,90823.0,0.055027]
[1731766223526,0.0876,90835.0,90823.0,0.055027]
[1731766223736,0.0876,90835.0,90826.0,0.10461679]
[1731766223737,0.055024,90827.0,90826.0,0.10461679]
[1731766229828,0.0876,90835.0,90826.0,0.10461679]
[1731766230135,0.055021,90833.0,90826.0,0.10461679]
[1731766230341,0.0876,90835.0,90826.0,0.10461679]
[1731766230533,0.0876,90843.0,90828.0,0.10461679]
[1731766230732,0.055017,90839.0,90836.0,0.10461679]
[1731766232525,0.0876,90844.0,90828.0,0.15996446]
[1731766232729,0.055023,90830.0,90828.0,0.10461679]
[1731766233945,0.055023,90830.0,90827.0,0.055024]
[1731766234135,0.055023,90830.0,90829.0,0.10461679]
[1731766235245,0.36092933,90837.0,90827.0,0.055024]
[1731766235426,0.36092933,90837.0,90830.0,0.10461679]
[1731766235631,0.055022,90831.0,90830.0,0.10461679]
[1731766239331,0.055022,90831.0,90830.0,0.15865559]
[1731766244747,0.055022,90831.0,90830.0,0.12275539]
[1731766249949,0.055022,90831.0,90830.0,0.38390072]
[1731766250151,0.055022,90831.0,90830.0,0.0540388]
[1731766250336,0.3608,90833.0,90828.0,0.32986192]
[1731766250650,0.3608,90833.0,90820.0,0.06871659]
[1731766250651,0.055024,90827.0,90826.0,0.32986192]
[1731766250839,0.055024,90827.0,90825.0,0.32986192]
[1731766251356,0.055026,90825.0,90823.0,0.32986192]
[1731766251647,0.055023,90830.0,90823.0,0.33004035]
[1731766251847,0.055027,90823.0,90822.0,0.33003775]
[1731766252053,0.055027,90823.0,90822.0,0.39875434]
[1731766252245,0.055027,90823.0,90822.0,0.06871659]
[1731766256051,0.08756,90826.0,90822.0,0.06871659]
[1731766256246,0.08756,90826.0,90824.0,0.39491021]
[1731766256447,0.415822,90831.0,90825.0,0.39491021]
[1731766256753,0.415822,90831.0,90827.0,0.53234339]
[1731766257054,0.415822,90831.0,90829.0,0.39491021]
[1731766257239,0.415822,90831.0,90827.0,0.13743318]
[1731766257240,0.415822,90831.0,90828.0,0.39491021]
[1731766257547,0.415822,90831.0,90829.0,0.39491021]
[1731766257942,0.00012933,90837.0,90829.0,0.39491021]
[1731766258252,0.00012933,90837.0,90835.0,0.13743318]
[1731766258448,0.00165182,90850.0,90836.0,0.34353846]
[1731766258645,0.00165182,90850.0,90846.0,0.13743318]
[1731766258845,0.00165182,90850.0,90846.0,0.10465413]
[1731766259349,0.055012,90848.0,90846.0,0.10465413]
[1731766259553,0.00165182,90850.0,90846.0,0.00011214]
[1731766259848,0.415812,90847.0,90846.0,0.00011214]
[1731766260249,0.415812,90847.0,90846.0,0.32966905]
[1731766260448,0.415812,90847.0,90846.0,0.00011214]
[1731766261662,0.415812,90847.0,90846.0,0.10476627]
[1731766262550,0.415812,90847.0,90846.0,0.43417702]
[1731766262744,0.415812,90847.0,90846.0,0.00011214]
[1731766265153,0.776612,90847.0,90846.0,0.00011214]
[1731766271057,1.106852,90847.0,90846.0,0.00011214]
[1731766271864,1.16148825,90847.0,90846.0,0.00011214]
[1731766273359,0.83124825,90847.0,90846.0,0.00011214]
[1731766273968,1.16148825,90847.0,90846.0,0.00011214]
[1731766274965,0.83124825,90847.0,90846.0,0.00011214]
[1731766275168,1.16148825,90847.0,90846.0,0.00011214]
[1731766275372,1.3036628,90847.0,90846.0,0.00011214]
[1731766275560,1.17288147,90847.0,90846.0,0.00011214]
[1731766275871,1.29226958,90847.0,90846.0,0.00011214]
[1731766276074,1.16148825,90847.0,90846.0,0.00011214]
[1731766277154,0.83124825,90847.0,90846.0,0.00011214]
[1731766280070,0.84255289,90847.0,90846.0,0.00011214]
[1731766280371,0.97360648,90847.0,90846.0,0.00011214]
[1731766280574,0.84255289,90847.0,90846.0,0.00011214]
[1731766280773,0.98001769,90847.0,90846.0,0.00011214]
[1731766281384,0.96871305,90847.0,90846.0,0.00011214]
[1731766281580,1.09976664,90847.0,90846.0,3.78e-06]
[1731766281774,0.98025481,90847.0,90846.0,3.78e-06]
[1731766282076,1.1113084,90847.0,90846.0,3.78e-06]
[1731766282267,0.98025483,90847.0,90846.0,3.78e-06]
[1731766282864,0.94752821,90847.0,90846.0,3.78e-06]
[1731766283766,1.27776821,90847.0,90846.0,3.78e-06]
[1731766283971,1.59645698,90847.0,90846.0,3.78e-06]
[1731766284366,1.76024077,90847.0,90846.0,3.78e-06]
[1731766284772,1.46023694,90847.0,90846.0,3.78e-06]
[1731766285078,1.349967,90847.0,90846.0,3.78e-06]
[1731766285282,0.055021,90832.0,90831.0,0.05421326]
[1731766285472,0.055024,90828.0,90827.0,0.00165144]
[1731766285981,0.055027,90823.0,90822.0,0.26350504]
[1731766286184,0.415827,90823.0,90822.0,0.26350504]
[1731766287473,0.415827,90823.0,90821.0,0.26350504]
[1731766287783,0.415827,90823.0,90822.0,0.26350504]
[1731766289385,0.415827,90823.0,90821.0,0.0562846]
[1731766289570,0.415827,90823.0,90816.0,0.32941075]
[1731766289771,0.055029,90821.0,90816.0,0.32941075]
[1731766289970,0.3608,90823.0,90816.0,0.32941075]
[1731766290187,0.055029,90820.0,90816.0,0.32941075]
[1731766290684,0.05503,90819.0,90816.0,0.32941075]
[1731766291073,0.05503,90818.0,90816.0,0.32941075]
[1731766291985,0.05503,90818.0,90817.0,0.32941075]
[1731766292479,0.3608,90823.0,90811.0,0.45047694]
[1731766292480,0.055031,90816.0,90811.0,0.45047694]
[1731766292685,0.055031,90816.0,90812.0,0.39544294]
[1731766292883,0.055031,90816.0,90811.0,0.45047694]
[1731766293084,0.055032,90815.0,90811.0,0.11028914]
[1731766293383,0.055032,90815.0,90811.0,0.45069808]
[1731766293580,0.055032,90815.0,90812.0,0.055033]
[1731766294181,0.055032,90815.0,90812.0,0.45047594]
[1731766294579,0.3608,90823.0,90812.0,0.39544294]
[1731766294778,0.415827,90823.0,90822.0,0.10473818]
[1731766295187,0.415827,90823.0,90822.0,0.43426476]
[1731766295699,0.3608,90823.0,90816.0,0.45047394]
[1731766295877,0.055029,90821.0,90818.0,0.10473818]
[1731766296176,0.055029,90821.0,90819.0,0.055029]
[1731766296379,0.49696162,90841.0,90818.0,0.10473818]
[1731766296380,0.3659,90841.0,90818.0,0.10473818]
[1731766296581,0.0051,90848.0,90838.0,0.26365957]
[1731766296780,0.00165182,90850.0,90847.0,0.10473818]
[1731766296989,0.055012,90849.0,90847.0,0.36839775]
[1731766297178,0.055012,90849.0,90847.0,0.10473818]
[1731766297381,0.055012,90849.0,90847.0,0.43408525]
[1731766297979,0.055012,90849.0,90848.0,0.3293454]
[1731766298489,0.055012,90849.0,90847.0,0.49043393]
[1731766299586,0.055012,90849.0,90847.0,0.16108853]
[1731766299781,0.055012,90849.0,90847.0,0.49043393]
[1731766300381,0.00165182,90850.0,90846.0,0.3293454]
[1731766300687,0.00165182,90850.0,90844.0,0.3293454]
[1731766300688,0.055014,90845.0,90844.0,0.3293454]
[1731766300988,0.00165182,90850.0,90841.0,0.3293454]
[1731766300989,0.055015,90843.0,90841.0,0.3293454]
[1731766301183,0.055017,90840.0,90838.0,0.3293454]
[1731766301380,0.055018,90838.0,90836.0,0.05398866]
[1731766301584,0.3608,90846.0,90833.0,0.39544294]
[1731766301786,0.3608,90846.0,90843.0,0.26327477]
[1731766301787,0.055014,90845.0,90843.0,0.26327477]
[1731766302679,0.055015,90843.0,90842.0,0.26327477]
[1731766303087,0.44824,90846.0,90832.0,0.15992543]
[1731766303088,0.44824,90846.0,90834.0,0.32909346]
[1731766303295,0.50432979,90846.0,90842.0,0.26325132]
[1731766303587,0.055018,90839.0,90834.0,0.32909346]
[1731766303887,0.142454,90845.0,90838.0,0.10473818]
[1731766304093,0.142454,90845.0,90839.0,0.3290131]
[1731766304686,0.142454,90845.0,90844.0,0.26317395]
[1731766305277,0.142454,90845.0,90843.0,0.26317395]
[1731766306892,0.055014,90844.0,90843.0,0.26310987]
[1731766307193,0.055014,90844.0,90838.0,0.10473818]
[1731766307194,0.055014,90844.0,90842.0,0.26310987]
[1731766308092,0.055014,90844.0,90843.0,0.26310987]
[1731766308297,0.00165182,90850.0,90843.0,0.26310987]
[1731766308594,0.00165182,90850.0,90849.0,0.10473818]
[1731766308998,0.00165182,90850.0,90849.0,0.43493818]
[1731766309195,0.00165182,90850.0,90849.0,0.10473818]
[1731766312020,0.00165182,90850.0,90849.0,0.15987474]
[1731766314507,0.05501,90851.0,90849.0,0.15987474]
[1731766314813,0.05501,90851.0,90850.0,0.26282683]
[1731766315804,0.055006,90858.0,90850.0,0.26282683]
[1731766316015,0.055006,90858.0,90857.0,0.10473818]
[1731766317505,0.0874,90868.0,90853.0,0.055008]
[1731766317712,0.055007,90856.0,90855.0,0.10473818]
[1731766317907,0.055003,90863.0,90855.0,0.10473818]
[1731766318211,0.0874,90868.0,90862.0,0.15974118]
[1731766318417,0.055,90868.0,90862.0,0.15974118]
[1731766318608,0.055,90868.0,90863.0,0.055002]
[1731766318919,0.4482,90872.0,90863.0,0.055002]
[1731766320317,0.055001,90866.0,90864.0,0.055002]
[1731766321713,0.055001,90866.0,90863.0,0.0555525]
[1731766321714,0.054997,90873.0,90871.0,0.054997]
[1731766321920,0.054997,90873.0,90872.0,0.10473818]
[1731766322227,0.00178204,90875.0,90873.0,0.054997]
[1731766322621,0.0001307,90875.0,90873.0,0.054997]
[1731766322833,0.0001307,90875.0,90874.0,0.32860371]
[1731766323615,0.0001307,90875.0,90873.0,0.054997]
[1731766324522,0.0001307,90875.0,90874.0,0.3285116]
[1731766324919,0.0001307,90875.0,90873.0,0.3835086]
[1731766325222,0.0001307,90875.0,90873.0,0.054997]
[1731766325716,0.0551267,90875.0,90873.0,0.31811372]
[1731766325918,0.0551267,90875.0,90872.0,0.10473818]
[1731766325919,0.0551267,90875.0,90872.0,0.36758664]
[1731766326626,0.0551267,90875.0,90874.0,0.26284846]
[1731766327212,0.0551267,90875.0,90873.0,0.26292348]
[1731766327425,0.0551267,90875.0,90874.0,0.26292348]
[1731766328329,0.0551267,90875.0,90873.0,0.26292348]
[1731766328624,0.0551267,90875.0,90872.0,0.21500044]
[1731766328625,0.054997,90873.0,90872.0,0.10473818]
[1731766329016,0.0001307,90875.0,90873.0,0.054997]
[1731766329231,0.415788,90888.0,90874.0,0.10473818]
[1731766329526,0.054988,90888.0,90887.0,0.10473818]
[1731766330332,0.054988,90888.0,90887.0,0.10487197]
[1731766330519,0.0874,90895.0,90887.0,0.10487197]
[1731766330520,0.054985,90893.0,90887.0,0.10487197]
[1731766331015,0.0874,90895.0,90887.0,0.10487197]
[1731766331217,0.08732,90895.0,90887.0,0.10487197]
[1731766331527,0.142303,90895.0,90894.0,0.10473818]
[1731766332030,0.154981,90900.0,90894.0,0.10473818]
[1731766332213,0.054981,90899.0,90894.0,0.10473818]
[1731766333117,0.054983,90896.0,90894.0,0.10473818]
[1731766335419,0.054988,90888.0,90887.0,0.00013379]
[1731766335735,0.054984,90894.0,90887.0,0.00013379]
[1731766335913,0.054984,90894.0,90893.0,0.10473818]
[1731766338422,0.054986,90891.0,90887.0,0.00013379]
[1731766338821,0.054987,90890.0,90887.0,0.00013379]
[1731766339523,0.054987,90889.0,90887.0,0.00013379]
[1731766344019,0.08732,90895.0,90887.0,0.00013379]
[1731766344221,0.08732,90895.0,90894.0,0.10473818]
[1731766344634,0.054983,90896.0,90894.0,0.10473818]
[1731766352236,0.054988,90888.0,90887.0,0.32864539]
[1731766352443,0.054988,90888.0,90887.0,0.00013379]
[1731766353347,0.19769281,90888.0,90887.0,0.00013379]
[1731766353854,0.054988,90888.0,90887.0,0.00013379]
[1731766354539,0.18639205,90888.0,90887.0,0.00013379]
[1731766355341,0.054988,90888.0,90887.0,0.00013379]
[1731766356339,0.415788,90888.0,90887.0,0.00013379]
[1731766356744,0.54719205,90888.0,90887.0,0.00013379]
[1731766358037,0.415788,90888.0,90887.0,0.00013379]
[1731766358243,0.60109341,90888.0,90887.0,0.00013379]
[1731766358532,0.054995,90876.0,90875.0,0.00165036]
[1731766358738,0.503115,90876.0,90875.0,0.00165036]
[1731766360044,0.055001,90866.0,90865.0,0.43324978]
[1731766360242,0.054997,90873.0,90867.0,0.055]
[1731766360443,0.054997,90873.0,90872.0,0.10473818]
[1731766361948,0.054997,90873.0,90866.0,0.32917426]
[1731766361949,0.055,90867.0,90866.0,0.32917426]
[1731766362157,0.055,90867.0,90865.0,0.43391244]
[1731766362343,0.055,90867.0,90865.0,0.10473818]
[1731766363546,0.055,90867.0,90865.0,0.43391244]
[1731766363848,0.055,90867.0,90865.0,0.10473818]
[1731766364045,0.08732,90875.0,90864.0,0.32917426]
[1731766364240,0.055001,90865.0,90864.0,0.32917426]
[1731766364436,0.055001,90865.0,90860.0,0.05590888]
[1731766364437,0.055001,90865.0,90863.0,0.32917426]
[1731766364942,0.3608,90867.0,90858.0,0.32917426]
[1731766365253,0.3608,90867.0,90856.0,0.32917426]
[1731766365546,0.055006,90857.0,90856.0,0.32917426]
[1731766365749,0.055001,90866.0,90856.0,0.29850104]
[1731766365937,0.055004,90861.0,90860.0,0.3290032]
[1731766366143,0.055004,90861.0,90859.0,0.3290032]
[1731766367343,0.055004,90861.0,90858.0,0.3290032]
[1731766367542,0.055004,90861.0,90858.0,0.43374138]
[1731766367743,0.055004,90861.0,90859.0,0.29847061]
[1731766367949,0.055004,90861.0,90860.0,0.29847061]
[1731766369243,0.055004,90861.0,90860.0,0.62731037]
[1731766369955,0.055004,90861.0,90860.0,0.29847061]
[1731766370148,0.4158,90867.0,90860.0,0.29847061]
[1731766370348,0.4158,90867.0,90866.0,0.10473818]
[1731766370543,0.055,90867.0,90866.0,0.10473818]
[1731766370751,0.055,90867.0,90866.0,0.43357576]
[1731766371147,0.055,90867.0,90866.0,0.73387099]
[1731766371949,0.055,90867.0,90866.0,0.10473818]
[1731766372652,0.055,90867.0,90866.0,0.43357576]
[1731766373058,0.055,90867.0,90866.0,0.10473818]
[1731766373655,0.055,90867.0,90866.0,0.43357576]
[1731766373955,0.055,90867.0,90866.0,0.10473818]
[1731766374358,0.055,90867.0,90866.0,0.43357576]
[1731766374654,0.055,90867.0,90866.0,0.10473818]
[1731766375351,0.055,90867.0,90866.0,0.15900204]
[1731766375846,0.055,90867.0,90866.0,0.10473818]
[1731766376053,0.08728,90874.0,90864.0,0.32883758]
[1731766376254,0.054997,90873.0,90872.0,0.26314126]
[1731766376851,0.054997,90873.0,90871.0,0.26314126]
[1731766377053,0.054997,90873.0,90872.0,0.26314126]
[1731766377558,0.08728,90874.0,90869.0,0.26314126]
[1731766377559,0.054998,90871.0,90869.0,0.26314126]
[1731766378045,0.054998,90871.0,90870.0,0.26314126]
[1731766378250,0.08728,90874.0,90864.0,0.32883758]
[1731766378251,0.055001,90865.0,90864.0,0.32883758]
[1731766378855,0.055001,90865.0,90863.0,0.32883758]
[1731766379045,0.3608,90871.0,90859.0,0.39544294]
[1731766379246,0.3608,90871.0,90865.0,0.32912135]
[1731766379447,0.3608,90871.0,90867.0,0.32921457]
[1731766379651,0.055,90868.0,90867.0,0.32921457]
[1731766379845,0.3608,90871.0,90867.0,0.32921457]
[1731766380250,0.054998,90870.0,90868.0,0.32921457]
[1731766380453,0.055,90868.0,90867.0,0.32921457]
[1731766380654,0.055002,90865.0,90863.0,0.39544294]
[1731766380849,0.3608,90871.0,90867.0,0.055]
[1731766381049,0.3608,90871.0,90870.0,0.06866568]
[1731766381860,0.3608,90871.0,90865.0,0.06866568]
[1731766381861,0.055001,90866.0,90865.0,0.06866568]
[1731766386857,0.055001,90866.0,90865.0,0.46443419]
[1731766387562,0.055001,90866.0,90865.0,0.06866568]
[1731766387861,0.055001,90866.0,90865.0,0.39578854]
[1731766388258,0.055001,90866.0,90864.0,0.13733136]
[1731766388656,0.055001,90866.0,90864.0,0.06866568]
[1731766388862,0.055001,90866.0,90865.0,0.39580094]
[1731766389358,0.055001,90866.0,90864.0,0.06866568]
[1731766389962,0.055001,90866.0,90864.0,0.46446662]
[1731766390455,0.055001,90866.0,90864.0,0.06866568]
[1731766393260,0.055003,90862.0,90860.0,0.39580094]
[1731766393451,0.3608,90871.0,90860.0,0.39585302]
[1731766393654,0.3608,90871.0,90858.0,0.05527619]
[1731766393655,0.054998,90870.0,90868.0,0.32988349]
[1731766393862,0.055,90868.0,90867.0,0.32988349]
[1731766394163,0.055,90868.0,90862.0,0.39585302]
[1731766394664,0.055,90868.0,90863.0,0.39585302]
[1731766395363,0.055002,90864.0,90862.0,0.39585302]
[1731766395557,0.448,90863.0,90862.0,0.39585302]
[1731766395963,0.448,90863.0,90861.0,0.39583925]
[1731766396264,0.503003,90863.0,90861.0,0.39583925]
[1731766397161,0.448,90863.0,90860.0,0.39583925]
[1731766397461,0.448,90863.0,90855.0,0.06866568]
[1731766397462,0.055007,90856.0,90855.0,0.06866568]
[1731766397666,0.055007,90856.0,90855.0,0.41480084]
[1731766397854,0.055007,90856.0,90855.0,0.06866568]
[1731766398468,0.055007,90856.0,90855.0,0.34618472]
[1731766398676,0.51666568,90863.0,90855.0,0.39581362]
[1731766398677,0.055006,90857.0,90855.0,0.39581362]
[1731766398964,0.055007,90855.0,90853.0,0.39581362]
[1731766399168,0.06866568,90858.0,90847.0,0.12682394]
[1731766399169,0.055009,90853.0,90847.0,0.12682394]
[1731766399368,0.055011,90849.0,90848.0,0.34431068]
[1731766399561,0.055011,90849.0,90846.0,0.00165068]
[1731766399562,0.06866568,90850.0,90846.0,0.00165068]
[1731766399758,0.055012,90847.0,90846.0,0.00165068]
[1731766400059,0.055012,90847.0,90846.0,0.39737862]
[1731766400265,0.055012,90847.0,90846.0,0.00165068]
[1731766406863,0.055012,90847.0,90846.0,0.2650714]
[1731766407271,0.055012,90847.0,90846.0,0.00165068]
[1731766407470,0.055012,90847.0,90845.0,0.26342072]
[1731766407676,0.055014,90845.0,90844.0,0.26337958]
[1731766407870,0.055014,90845.0,90842.0,0.26337958]
[1731766407871,0.055015,90843.0,90842.0,0.26337958]
[1731766408070,0.055015,90843.0,90841.0,0.26337958]
[1731766408071,0.12368068,90843.0,90841.0,0.26337958]
[1731766408281,0.055018,90837.0,90836.0,0.26337958]
[1731766408977,0.055021,90832.0,90831.0,0.32947581]
[1731766409282,0.055021,90832.0,90831.0,0.12461591]
[1731766411075,0.055021,90832.0,90831.0,0.43573432]
[1731766411880,0.055021,90832.0,90831.0,0.36706864]
[1731766412078,0.055021,90832.0,90831.0,0.38493845]
[1731766412276,0.055021,90832.0,90831.0,0.05595023]
[1731766412576,0.055023,90830.0,90829.0,0.32898822]
[1731766412885,0.055023,90830.0,90829.0,0.63726264]
[1731766413378,0.055023,90830.0,90829.0,0.63635954]
[1731766413580,0.055023,90830.0,90829.0,0.32898822]
[1731766413972,0.055023,90830.0,90829.0,0.63635979]
[1731766414178,0.056023,90830.0,90829.0,0.33298822]
[1731766414876,0.056023,90830.0,90829.0,0.64017535]
[1731766415071,0.056023,90830.0,90829.0,0.31118713]
[1731766415278,0.057023,90830.0,90829.0,0.31418713]
[1731766415675,0.002,90830.0,90829.0,0.31418713]
[1731766418778,0.002,90830.0,90829.0,0.70991507]
[1731766418981,0.002,90830.0,90829.0,0.31418713]